fUSD/lending_fUSD_20251129
["ID","MTS","AMOUNT","RATE_DAILY","PERIOD"]
[395104436,1764433844657,-500.0,0.00014693,2]
[395104437,1764433844666,-378.0,0.00014701,2]
[395104438,1764433844675,-1922.0,0.00014713,2]
[395104439,1764433844685,-472.09526351,0.00014725,2]
[395104440,1764433844695,-150.0,0.00014727,2]
[395104441,1764433844704,-165.54924187,0.00014727,2]
[395104442,1764433844713,-150.0,0.00014727,2]
[395104443,1764433844722,-500.0,0.00014727,2]
[395104444,1764433844729,-500.0,0.00014727,2]
[395104445,1764433844738,-550.0,0.00014727,2]
[395104446,1764433844746,-270.01999727,0.00014727,2]
[395104447,1764433844754,-1419.0,0.00014727,2]
[395104448,1764433844762,-500.0,0.00014727,2]
[395104449,1764433844770,-500.0,0.00014727,2]
[395104450,1764433844779,-500.0,0.00014727,2]
[395104451,1764433844789,-500.0,0.00014727,2]
[395104452,1764433844798,-500.0,0.00014727,2]
[395104453,1764433844808,-150.0,0.00014727,2]
[395104454,1764433844818,-500.0,0.00014727,2]
[395104455,1764433844828,-500.0,0.00014727,2]
[395104456,1764433844838,-500.0,0.00014727,2]
[395104457,1764433844849,-150.0,0.00014727,2]
[395104458,1764433844859,-500.0,0.00014727,2]
[395104459,1764433844869,-502.963945,0.00014727,2]
[395104460,1764433844878,-151.0,0.00014727,2]
[395104461,1764433844888,-245.322231,0.00014727,2]
[395104462,1764433844899,-337.882814,0.00014727,2]
[395104463,1764433844908,-245.322231,0.00014727,2]
[395104464,1764433844918,-337.882814,0.00014727,2]
[395104465,1764433844927,-245.322231,0.00014727,2]
[395104466,1764433844936,-337.882814,0.00014727,2]
[395104467,1764433844946,-245.322231,0.00014727,2]
[395104468,1764433844955,-337.882814,0.00014727,2]
[395104469,1764433844964,-502.963945,0.00014727,2]
[395104470,1764433844973,-502.963945,0.00014727,2]
[395104471,1764433844982,-502.963945,0.00014727,2]
[395104472,1764433844991,-151.0,0.00014727,2]
[395104473,1764433845001,-151.0,0.00014727,2]
[395104474,1764433845011,-151.0,0.00014727,2]
[395104475,1764433845020,-247.015437,0.00014727,2]
[395104476,1764433845030,-187.0,0.00014729,2]
[395104477,1764433845040,-1023.0,0.00014729,2]
[395104478,1764433845051,-1047.0,0.00014743,2]
[395104479,1764433845060,-438.0,0.00014745,2]
[395104480,1764433845070,-287.0,0.00014745,2]
[395104481,1764433845084,-151.0,0.00014745,2]
[395104482,1764433845093,-151.0,0.00014745,2]
[395104483,1764433845103,-151.0,0.00014745,2]
[395104484,1764433845113,-151.0,0.00014745,2]
[395104485,1764433845125,-151.0,0.00014745,2]
[395104486,1764433845134,-428.473139,0.00014745,2]
[395104487,1764433845144,-428.473139,0.00014745,2]
[395104488,1764433845154,-428.473139,0.00014745,2]
[395104489,1764433845166,-428.473139,0.00014745,2]
[395104490,1764433845176,-151.0,0.00014745,2]
[395104491,1764433845186,-165.39,0.00014747,2]
[395104492,1764433845195,-179.9006339,0.00014759,2]
[395104493,1764433845205,-151.0,0.00014759,2]
[395104494,1764433845215,-151.0,0.00014759,2]
[395104495,1764433845224,-151.0,0.00014759,2]
[395104496,1764433845233,-151.0,0.00014759,2]
[395104497,1764433845242,-151.0,0.00014759,2]
[395104498,1764433845252,-151.0,0.00014759,2]
[395104499,1764433845264,-151.0,0.00014759,2]
[395104500,1764433845274,-151.0,0.00014759,2]
[395104501,1764433845283,-185.264817,0.00014759,2]
[395104502,1764433845293,-450.347705,0.00014759,2]
[395104503,1764433845303,-450.347705,0.00014759,2]
[395104504,1764433845313,-450.347705,0.00014759,2]
[395104505,1764433845322,-450.347705,0.00014759,2]
[395104506,1764433845333,-887.0,0.00014761,2]
[395104507,1764433845342,-211.0,0.00014772,2]
[395104508,1764433845352,-786.0,0.00014784,2]
[395104509,1764433845362,-1055.31608171,0.00014794,2]
[395104510,1764433845371,-699.0,0.00014813,2]
[395104511,1764433845381,-744.625334,0.0001482,10]
[395104512,1764433845390,-314.0,0.0001482,2]
[395104513,1764433845399,-152.82038322,0.00014828,2]
[395104514,1764433845408,-169.74562333,0.00014828,2]
[395104515,1764433845418,-151.92540351,0.00014828,2]
[395104516,1764433845427,-150.0,0.00014828,2]
[395104517,1764433845436,-150.0,0.00014828,2]
[395104518,1764433845446,-150.0,0.00014828,2]
[395104519,1764433845456,-1323.0,0.00014843,2]
[395104520,1764433845467,-1087.94,0.00014856,2]
[395104521,1764433845478,-207.17088019,0.00014864,2]
[395104522,1764433845488,-150.0,0.00014864,2]
[395104523,1764433845497,-500.0,0.00014864,2]
[395104524,1764433845507,-465.62570539,0.00014864,2]
[395104525,1764433845518,-1419.0,0.00014864,2]
[395104526,1764433845529,-500.0,0.00014864,2]
[395104527,1764433845538,-500.0,0.00014864,2]
[395104528,1764433845548,-500.0,0.00014864,2]
[395104529,1764433845557,-500.0,0.00014864,2]
[395104530,1764433845567,-500.0,0.00014864,2]
[395104531,1764433845576,-150.0,0.00014864,2]
[395104532,1764433845585,-500.0,0.00014864,2]
[395104533,1764433845595,-500.0,0.00014864,2]
[395104534,1764433845604,-500.0,0.00014864,2]
[395104535,1764433845613,-150.0,0.00014864,2]
[395104536,1764433845622,-500.0,0.00014864,2]
[395104537,1764433845632,-160.04,0.00014866,2]
[395104538,1764433845641,-493.56805,0.0001487,2]
[395104539,1764433845651,-887.0,0.00014872,2]
[395104540,1764433845660,-166.66,0.00014872,2]
[395104541,1764433845670,-500.0,0.00014893,2]
[395104542,1764433845679,-258.0,0.00014902,2]
[395104543,1764433845689,-14220.15128221,0.00014948,2]
[395104544,1764433845699,-9930.29644806,0.00014948,2]
[395104545,1764433845708,-151.0,0.00014948,2]
[395104546,1764433845718,-219.81787,0.00014948,2]
[395104547,1764433845729,-151.0,0.00014948,2]
[395104548,1764433845739,-219.81787,0.00014948,2]
[395104549,1764433845748,-219.81787,0.00014948,2]
[395104550,1764433845758,-219.81787,0.00014948,2]
[395104551,1764433845769,-151.0,0.00014948,2]
[395104552,1764433845778,-151.0,0.00014948,2]
[395104553,1764433845787,-290.369684,0.00014948,2]
[395104554,1764433845797,-151.0,0.00014948,2]
[395104555,1764433845807,-280.233325,0.00014948,2]
[395104556,1764433845816,-370.130436,0.00014948,2]
[395104557,1764433845825,-370.130436,0.00014948,2]
[395104558,1764433845835,-151.0,0.00014948,2]
[395104559,1764433845844,-370.130436,0.00014948,2]
[395104560,1764433845853,-370.130436,0.00014948,2]
[395104561,1764433845862,-151.0,0.00014948,2]
[395104563,1764433845871,-151.0,0.00014948,2]
[395104564,1764433845881,-151.0,0.00014948,2]
[395104565,1764433845891,-151.0,0.00014948,2]
[395104566,1764433845901,-151.0,0.00014948,2]
[395104567,1764433845911,-151.0,0.00014948,2]
[395104568,1764433845921,-151.0,0.00014948,2]
[395104569,1764433845932,-208.356657,0.00014948,2]
[395104571,1764433845942,-253.674082,0.00014948,2]
[395104573,1764433845951,-253.674082,0.00014948,2]
[395104575,1764433845960,-150.0,0.00014965,2]
[395104577,1764433845969,-174.57641732,0.00014965,2]
[395104579,1764433845979,-322.76,0.0001497,2]
[395104581,1764433845988,-42002.85877516,0.00015,2]
[395104583,1764433845997,-600.0,0.00015,2]
[395104585,1764433846007,-167.219592,0.00015,2]
[395104586,1764433846015,-167.219592,0.00015,2]
[395104587,1764433846024,-167.219592,0.00015,2]
[395104588,1764433846034,-167.219592,0.00015,2]
[395104589,1764433846045,-744.159204,0.00015,2]
[395104590,1764433846055,-403.041768,0.00015,2]
[395104591,1764433846064,-744.159204,0.00015,2]
[395104592,1764433846074,-403.041768,0.00015,2]
[395104593,1764433846085,-744.159204,0.00015,2]
[395104594,1764433846095,-403.041768,0.00015,2]
[395104595,1764433846105,-744.159204,0.00015,2]
[395104596,1764433846115,-403.041768,0.00015,2]
[395104597,1764433846124,-1259.5585,0.00015,2]
[395104598,1764433846134,-163.286955,0.00015,2]
[395104599,1764433846143,-151.0,0.00015,2]
[395104600,1764433846154,-151.0,0.00015,2]
[395104601,1764433846164,-151.0,0.00015,2]
[395104602,1764433846174,-174.139515,0.00015,2]
[395104603,1764433846184,-529.750646,0.00015,2]
[395104604,1764433846195,-529.750646,0.00015,2]
[395104605,1764433846205,-151.0,0.00015,2]
[395104606,1764433846216,-151.0,0.00015,2]
[395104607,1764433846226,-151.0,0.00015,2]
[395104608,1764433846236,-151.0,0.00015,2]
[395104609,1764433846246,-151.0,0.00015,2]
[395104610,1764433846257,-151.0,0.00015,2]
[395104611,1764433846268,-151.0,0.00015,2]
[395104612,1764433846279,-295.914944,0.00015,2]
[395104613,1764433846288,-296.881878,0.00015,2]
[395104614,1764433846298,-295.914944,0.00015,2]
[395104615,1764433846309,-529.750646,0.00015,2]
[395104616,1764433846320,-296.881878,0.00015,2]
[395104617,1764433846330,-295.914944,0.00015,2]
[395104618,1764433846340,-529.750646,0.00015,2]
[395104619,1764433846355,-296.881878,0.00015,2]
[395104620,1764433846366,-295.914944,0.00015,2]
[395104621,1764433846375,-296.881878,0.00015,2]
[395104622,1764433846392,-151.0,0.00015,2]
[395104623,1764433846404,-168.409941,0.00015,2]
[395104624,1764433846415,-151.0,0.00015,2]
[395104625,1764433846425,-168.409941,0.00015,2]
[395104626,1764433846435,-193.21734,0.00015,2]
[395104627,1764433846444,-168.409941,0.00015,2]
[395104628,1764433846455,-168.409941,0.00015,2]
[395104630,1764433846465,-151.0,0.00015,2]
[395104631,1764433846475,-151.0,0.00015,2]
[395104632,1764433846485,-151.0,0.00015,2]
[395104634,1764433846494,-151.0,0.00015,2]
[395104635,1764433846504,-151.0,0.00015,2]
[395104636,1764433846514,-194.467468,0.00015,2]
[395104637,1764433846525,-151.0,0.00015,2]
[395104638,1764433846536,-194.467468,0.00015,2]
[395104639,1764433846546,-151.0,0.00015,2]
[395104640,1764433846556,-151.0,0.00015,2]
[395104641,1764433846566,-194.467468,0.00015,2]
[395104642,1764433846577,-194.467468,0.00015,2]
[395104643,1764433846587,-292.548808,0.00015,2]
[395104644,1764433846873,-292.548808,0.00015,2]
[395104645,1764433846883,-151.0,0.00015,2]
[395104646,1764433846893,-151.0,0.00015,2]
[395104647,1764433846903,-292.548808,0.00015,2]
[395104648,1764433846914,-151.0,0.00015,2]
[395104649,1764433846925,-292.548808,0.00015,2]
[395104650,1764433846936,-342.458978,0.00015,2]
[395104651,1764433846945,-151.0,0.00015,2]
[395104652,1764433846956,-342.458978,0.00015,2]
[395104653,1764433846966,-342.458978,0.00015,2]
[395104654,1764433846975,-342.458978,0.00015,2]
[395104655,1764433846988,-151.0,0.00015,2]
[395104656,1764433847000,-151.0,0.00015,2]
[395104657,1764433847010,-151.0,0.00015,2]
[395104658,1764433847020,-578.874717,0.00015,2]
[395104659,1764433847030,-578.874717,0.00015,2]
[395104660,1764433847040,-578.874717,0.00015,2]
[395104661,1764433847050,-578.874717,0.00015,2]
[395104662,1764433847060,-304.768612,0.00015,2]
[395104663,1764433847074,-304.768612,0.00015,2]
[395104664,1764433847093,-304.768612,0.00015,2]
[395104665,1764433847110,-304.768612,0.00015,2]
[395104666,1764433847121,-151.0,0.00015,2]
[395104667,1764433847133,-151.0,0.00015,2]
[395104668,1764433847143,-151.0,0.00015,2]
[395104669,1764433847154,-151.0,0.00015,2]
[395104670,1764433847164,-151.0,0.00015,2]
[395104671,1764433847174,-260.508205,0.00015,2]
[395104672,1764433847184,-151.0,0.00015,2]
[395104673,1764433847194,-151.0,0.00015,2]
[395104674,1764433847205,-151.0,0.00015,2]
[395104675,1764433847216,-159.66376599,0.00015001,2]
[395104676,1764433847228,-500.0,0.00015001,2]
[395104677,1764433847238,-1419.0,0.00015001,2]
[395104678,1764433847249,-500.0,0.00015001,2]
[395104679,1764433847259,-500.0,0.00015001,2]
[395104680,1764433847270,-500.0,0.00015001,2]
[395104681,1764433847283,-500.0,0.00015001,2]
[395104682,1764433847298,-500.0,0.00015001,2]
[395104683,1764433847319,-200.0,0.00015001,2]
[395104684,1764433847339,-500.0,0.00015001,2]
[395104685,1764433847351,-500.0,0.00015001,2]
[395104686,1764433847362,-500.0,0.00015001,2]
[395104687,1764433847373,-167.12923974,0.00015001,2]
[395104688,1764433847384,-500.0,0.00015001,2]
[395104689,1764433847394,-151.0,0.00015026,2]
[395104690,1764433847404,-151.0,0.00015026,2]
[395104691,1764433847414,-151.0,0.00015026,2]
[395104692,1764433847424,-151.0,0.00015026,2]
[395104693,1764433847434,-263.997247,0.00015026,2]
[395104694,1764433847443,-428.473139,0.00015026,2]
[395104695,1764433847452,-428.473139,0.00015026,2]
[395104696,1764433847462,-428.473139,0.00015026,2]
[395104697,1764433847472,-428.473139,0.00015026,2]
[395104698,1764433847483,-502.963945,0.00015026,2]
[395104699,1764433847493,-151.0,0.00015026,2]
[395104700,1764433847503,-245.322231,0.00015026,2]
[395104701,1764433847513,-337.882814,0.00015026,2]
[395104702,1764433847522,-245.322231,0.00015026,2]
[395104703,1764433847531,-337.882814,0.00015026,2]
[395104704,1764433847542,-245.322231,0.00015026,2]
[395104705,1764433847552,-337.882814,0.00015026,2]
[395104706,1764433847563,-245.322231,0.00015026,2]
[395104707,1764433847574,-337.882814,0.00015026,2]
[395104708,1764433847583,-502.963945,0.00015026,2]
[395104709,1764433847593,-502.963945,0.00015026,2]
[395104710,1764433847603,-502.963945,0.00015026,2]
[395104711,1764433847614,-151.0,0.00015026,2]
[395104712,1764433847624,-151.0,0.00015026,2]
[395104713,1764433847633,-151.0,0.00015026,2]
[395104714,1764433847643,-500.0,0.00015026,2]
[395104715,1764433847653,-200.0,0.00015026,2]
[395104716,1764433847662,-300.0,0.00015068,2]
[395104717,1764433847674,-427.446734,0.00015068,2]
[395104718,1764433847686,-427.446734,0.00015068,2]
[395104719,1764433847696,-427.446734,0.00015068,2]
[395104720,1764433847706,-427.446734,0.00015068,2]
[395104721,1764433847716,-427.446734,0.00015068,2]
[395104722,1764433847727,-427.446734,0.00015068,2]
[395104723,1764433847736,-427.446734,0.00015068,2]
[395104724,1764433847746,-427.446734,0.00015068,2]
[395104725,1764433847756,-427.446734,0.00015068,2]
[395104726,1764433847765,-427.446734,0.00015068,2]
[395104727,1764433847776,-427.446734,0.00015068,2]
[395104728,1764433847786,-427.446734,0.00015068,2]
[395104729,1764433847796,-151.0,0.00015069,2]
[395104730,1764433847805,-242.97139827,0.00015102,2]
[395104731,1764433847814,-493.56804,0.0001512,2]
[395104732,1764433847824,-179.9006339,0.00015127,2]
[395104733,1764433847835,-1087.94,0.0001513,2]
[395104734,1764433847845,-500.0,0.00015138,2]
[395104735,1764433847855,-1419.0,0.00015138,2]
[395104736,1764433847865,-299.73312259,0.00015138,2]
[395104737,1764433847875,-500.0,0.00015138,2]
[395104738,1764433847884,-223.55694152,0.00015138,2]
[395104739,1764433847894,-500.0,0.00015138,2]
[395104740,1764433847903,-500.0,0.00015138,2]
[395104741,1764433847914,-382.40187881,0.00015138,2]
[395104742,1764433847923,-550.0,0.00015138,2]
[395104743,1764433847935,-500.0,0.00015138,2]
[395104744,1764433847944,-500.0,0.00015138,2]
[395104745,1764433847954,-151.0,0.00015138,2]
[395104746,1764433847963,-151.0,0.00015138,2]
[395104747,1764433847972,-151.0,0.00015138,2]
[395104748,1764433847983,-151.0,0.00015138,2]
[395104749,1764433847992,-151.0,0.00015138,2]
[395104750,1764433848002,-450.347705,0.00015138,2]
[395104751,1764433848013,-450.347705,0.00015138,2]
[395104752,1764433848022,-450.347705,0.00015138,2]
[395104753,1764433848034,-450.347705,0.00015138,2]
[395104754,1764433848044,-14220.15128221,0.00015227,2]
[395104755,1764433848053,-9930.29644806,0.00015227,2]
[395104756,1764433848063,-151.0,0.00015227,2]
[395104757,1764433848073,-219.81787,0.00015227,2]
[395104758,1764433848087,-265.149413,0.00015227,2]
[395104759,1764433848097,-219.81787,0.00015227,2]
[395104760,1764433848106,-219.81787,0.00015227,2]
[395104761,1764433848117,-219.81787,0.00015227,2]
[395104762,1764433848127,-151.0,0.00015227,2]
[395104763,1764433848137,-151.0,0.00015227,2]
[395104764,1764433848147,-151.0,0.00015227,2]
[395104765,1764433848158,-370.130436,0.00015227,2]
[395104766,1764433848167,-370.130436,0.00015227,2]
[395104767,1764433848178,-151.0,0.00015227,2]
[395104768,1764433848188,-370.130436,0.00015227,2]
[395104769,1764433848198,-370.130436,0.00015227,2]
[395104770,1764433848208,-151.0,0.00015227,2]
[395104771,1764433848218,-151.587828,0.00015227,2]
[395104772,1764433848227,-151.0,0.00015227,2]
[395104773,1764433848237,-151.0,0.00015227,2]
[395104774,1764433848248,-151.0,0.00015227,2]
[395104775,1764433848257,-151.0,0.00015227,2]
[395104776,1764433848266,-151.0,0.00015227,2]
[395104777,1764433848277,-253.674082,0.00015227,2]
[395104778,1764433848288,-600.0,0.00015274,2]
[395104779,1764433848297,-500.0,0.00015275,2]
[395104780,1764433848308,-1419.0,0.00015275,2]
[395104781,1764433848318,-500.0,0.00015275,2]
[395104782,1764433848329,-500.0,0.00015275,2]
[395104783,1764433848338,-500.0,0.00015275,2]
[395104784,1764433848347,-500.0,0.00015275,2]
[395104785,1764433848358,-500.0,0.00015275,2]
[395104786,1764433848367,-150.0,0.00015288,2]
[395104787,1764433848377,-150.0,0.00015288,2]
[395104788,1764433848388,-150.0,0.00015288,2]
[395104789,1764433848397,-150.0,0.00015288,2]
[395104790,1764433848408,-150.0,0.00015288,2]
[395104791,1764433848417,-150.0,0.00015288,2]
[395104792,1764433848427,-150.0,0.00015288,2]
[395104793,1764433848436,-150.63510213,0.00015288,2]
[395104794,1764433848445,-150.0,0.00015288,2]
[395104795,1764433848454,-150.0,0.00015288,2]
[395104796,1764433848465,-150.0,0.00015288,2]
[395104797,1764433848475,-150.0,0.00015288,2]
[395104798,1764433848484,-150.0,0.00015288,2]
[395104799,1764433848493,-150.0,0.00015288,2]
[395104800,1764433848502,-151.0,0.00015294,2]
[395104801,1764433848511,-600.0,0.00015342,2]
[395104802,1764433848520,-166.66,0.00015363,2]
[395104803,1764433848530,-493.56805,0.0001537,2]
[395104804,1764433848542,-151.59,0.00015396,2]
[395104805,1764433848551,-2734.82058848,0.000154,2]
[395104806,1764433848564,-1087.94,0.00015404,2]
[395104807,1764433848573,-500.0,0.00015412,2]
[395104808,1764433848582,-1419.0,0.00015412,2]
[395104809,1764433848592,-500.0,0.00015412,2]
[395104810,1764433848601,-500.0,0.00015412,2]
[395104811,1764433848611,-500.0,0.00015412,2]
[395104812,1764433848620,-500.0,0.00015412,2]
[395104813,1764433848629,-500.0,0.00015412,2]
[395104814,1764433848639,-600.0,0.00015413,2]
[395104815,1764433848648,-150.0,0.00015458,2]
[395104816,1764433848658,-14220.15128221,0.00015506,2]
[395104817,1764433848668,-9930.29644806,0.00015506,2]
[395104818,1764433848678,-255.0,0.00015511,2]
[395104819,1764433848688,-500.0,0.00015549,2]
[395104820,1764433848697,-1419.0,0.00015549,2]
[395104821,1764433848707,-500.0,0.00015549,2]
[395104822,1764433848717,-500.0,0.00015549,2]
[395104823,1764433848727,-500.0,0.00015549,2]
[395104824,1764433848736,-500.0,0.00015549,2]
[395104825,1764433848745,-500.0,0.00015549,2]
[395104826,1764433848754,-151.0,0.0001555,2]
[395104827,1764433848763,-151.0,0.0001555,2]
[395104828,1764433848773,-151.0,0.0001555,2]
[395104829,1764433848782,-529.750646,0.0001555,2]
[395104830,1764433848791,-529.750646,0.0001555,2]
[395104831,1764433848800,-151.0,0.0001555,2]
[395104832,1764433848810,-151.0,0.0001555,2]
[395104833,1764433848819,-151.0,0.0001555,2]
[395104834,1764433848828,-151.0,0.0001555,2]
[395104835,1764433848837,-151.0,0.0001555,2]
[395104836,1764433848847,-151.0,0.0001555,2]
[395104837,1764433848856,-295.914944,0.0001555,2]
[395104838,1764433848865,-296.881878,0.0001555,2]
[395104839,1764433848874,-295.914944,0.0001555,2]
[395104840,1764433848883,-529.750646,0.0001555,2]
[395104841,1764433848893,-296.881878,0.0001555,2]
[395104842,1764433848902,-295.914944,0.0001555,2]
[395104843,1764433848912,-529.750646,0.0001555,2]
[395104844,1764433848923,-296.881878,0.0001555,2]
[395104845,1764433848934,-295.914944,0.0001555,2]
[395104846,1764433848944,-296.881878,0.0001555,2]
[395104847,1764433848957,-151.0,0.0001555,2]
[395104848,1764433848967,-168.409941,0.0001555,2]
[395104849,1764433848978,-151.0,0.0001555,2]
[395104850,1764433848990,-168.409941,0.0001555,2]
[395104851,1764433849001,-168.409941,0.0001555,2]
[395104852,1764433849011,-168.409941,0.0001555,2]
[395104853,1764433849020,-151.0,0.0001555,2]
[395104854,1764433849030,-151.0,0.0001555,2]
[395104855,1764433849040,-151.0,0.0001555,2]
[395104856,1764433849050,-151.0,0.0001555,2]
[395104857,1764433849059,-151.0,0.0001555,2]
[395104858,1764433849069,-194.467468,0.0001555,2]
[395104859,1764433849079,-151.0,0.0001555,2]
[395104860,1764433849092,-194.467468,0.0001555,2]
[395104861,1764433849102,-194.467468,0.0001555,2]
[395104862,1764433849112,-194.467468,0.0001555,2]
[395104863,1764433849122,-151.0,0.0001555,2]
[395104864,1764433849132,-342.458978,0.0001555,2]
[395104865,1764433849142,-342.458978,0.0001555,2]
[395104866,1764433849152,-342.458978,0.0001555,2]
[395104867,1764433849162,-342.458978,0.0001555,2]
[395104868,1764433849173,-578.874717,0.0001555,2]
[395104869,1764433849183,-578.874717,0.0001555,2]
[395104870,1764433849192,-578.874717,0.0001555,2]
[395104871,1764433849203,-578.874717,0.0001555,2]
[395104872,1764433849213,-10000.0,0.0001555,2]
[395104873,1764433849222,-167.219592,0.00015562,2]
[395104874,1764433849232,-167.219592,0.00015562,2]
[395104875,1764433849241,-167.219592,0.00015562,2]
[395104876,1764433849251,-167.219592,0.00015562,2]
[395104877,1764433849260,-744.159204,0.00015562,2]
[395104878,1764433849270,-403.041768,0.00015562,2]
[395104879,1764433849279,-744.159204,0.00015562,2]
[395104880,1764433849289,-403.041768,0.00015562,2]
[395104881,1764433849299,-744.159204,0.00015562,2]
[395104882,1764433849308,-403.041768,0.00015562,2]
[395104883,1764433849318,-744.159204,0.00015562,2]
[395104884,1764433849328,-403.041768,0.00015562,2]
[395104885,1764433849338,-150.0,0.00015571,2]
[395104886,1764433849466,-151.0,0.00015617,2]
[395104887,1764433849475,-493.56804,0.0001562,2]
[395104888,1764433849484,-150.0,0.00015627,2]
[395104889,1764433849494,-150.0,0.00015627,2]
[395104890,1764433849504,-150.0,0.00015627,2]
[395104891,1764433849513,-1087.94,0.00015678,2]
[395104892,1764433849522,-623.52956603,0.00015686,2]
[395104893,1764433849531,-1419.0,0.00015686,2]
[395104894,1764433849541,-500.0,0.00015686,2]
[395104895,1764433849551,-500.0,0.00015686,2]
[395104896,1764433849560,-500.0,0.00015686,2]
[395104897,1764433849569,-500.0,0.00015686,2]
[395104898,1764433849579,-550.39296676,0.00015686,2]
[395104899,1764433849587,-195.0,0.00015702,2]
[395104900,1764433849596,-195.0,0.00015702,2]
[395104901,1764433849606,-250.0,0.00015702,2]
[395104902,1764433849616,-1000.0,0.00015707,2]
[395104903,1764433849626,-150.0,0.00015712,2]
[395104904,1764433849635,-150.0,0.00015712,2]
[395104905,1764433849644,-150.0,0.00015712,2]
[395104906,1764433849653,-165.39,0.0001573,2]
[395104907,1764433849664,-420.0,0.00015758,2]
[395104908,1764433849675,-151.0,0.00015784,2]
[395104909,1764433849684,-151.0,0.00015784,2]
[395104910,1764433849696,-248.545558,0.00015784,2]
[395104911,1764433849706,-253.674082,0.00015784,2]
[395104912,1764433849715,-14220.15128221,0.00015784,2]
[395104913,1764433849725,-9930.29644806,0.00015784,2]
[395104914,1764433849734,-150.0,0.00015797,2]
[395104915,1764433849745,-250.0,0.00015802,2]
[395104916,1764433849755,-1419.0,0.00015823,2]
[395104917,1764433849764,-184.43412171,0.00015823,2]
[395104918,1764433849775,-500.0,0.00015823,2]
[395104919,1764433849785,-500.0,0.00015823,2]
[395104920,1764433849794,-358.73777718,0.00015823,2]
[395104921,1764433849804,-502.963945,0.00015823,2]
[395104922,1764433849814,-165.862707,0.00015823,2]
[395104923,1764433849823,-245.322231,0.00015823,2]
[395104924,1764433849832,-337.882814,0.00015823,2]
[395104925,1764433849841,-245.322231,0.00015823,2]
[395104926,1764433849852,-337.882814,0.00015823,2]
[395104927,1764433849861,-245.322231,0.00015823,2]
[395104928,1764433849872,-337.882814,0.00015823,2]
[395104929,1764433849881,-245.322231,0.00015823,2]
[395104930,1764433849890,-337.882814,0.00015823,2]
[395104931,1764433849901,-502.963945,0.00015823,2]
[395104932,1764433849911,-502.963945,0.00015823,2]
[395104933,1764433849920,-502.963945,0.00015823,2]
[395104934,1764433849929,-151.0,0.00015823,2]
[395104935,1764433849939,-151.0,0.00015823,2]
[395104936,1764433849949,-151.0,0.00015823,2]
[395104937,1764433849960,-151.0,0.00015823,2]
[395104938,1764433849970,-292.548808,0.00015823,2]
[395104939,1764433849980,-292.548808,0.00015823,2]
[395104940,1764433849989,-151.0,0.00015823,2]
[395104941,1764433849998,-292.548808,0.00015823,2]
[395104942,1764433850008,-151.0,0.00015823,2]
[395104943,1764433850017,-292.548808,0.00015823,2]
[395104944,1764433850026,-151.0,0.00015823,2]
[395104945,1764433850035,-151.0,0.00015823,2]
[395104946,1764433850046,-151.0,0.00015823,2]